Cogmind - Beta 16 @@@ ROGUE MODE // 2025.10.29 @ 23:35:02 Player: Err. String Expected Got Nil Result: Self-destructed Performance ------------- Evolutions (0) 0 Regions Visited (3) 600 Robots Destroyed (17) 85 Value Destroyed (292) 292 Prototype IDs (0) 0 Alien Tech Used (0) 0 Bonus (0) 0 TOTAL SCORE: 977 Bonus ------- None Cogmind --------- Core Integrity 144/250 Matter 280/300 Energy 265/265 System Corruption 0% Temperature Cool (0) Movement Treading (160) Location -8/Scraptown Parts ------- > --- POWER (1) -------- Improved Ion Engine > --- PROPULSION (2) --- Spiked Treads Improved Medium Treads > --- UTILITY (2) ------ Seismic Detector Reflective Plating > --- WEAPON (2) ------- Field Laser Assault Rifle > --- INVENTORY (5) ---- Light Deuterium Engine Light Treads Reflective Plating Plasma Cutter Katana Peak State ------------ > --- POWER ------------ Improved Ion Engine > --- PROPULSION ------- Spiked Treads Improved Medium Treads > --- UTILITY ---------- Seismic Detector Reflective Plating > --- WEAPON ----------- Field Laser Assault Rifle > --- INVENTORY -------- Light Deuterium Engine Light Treads Reflective Plating Plasma Cutter Katana [Rating: 18] Favorites ----------- Power Light Ion Engine Engine Light Ion Engine Propulsion Light Treads Treads Light Treads Utility Small Storage Unit Device Seismic Detector Storage Small Storage Unit Protection Scrap Shield Weapon Medium Laser Energy Gun Medium Laser Ballistic Gun Assault Rifle Special Weapon Mining Laser Build | -11 -10 -10 -8 ------- Run | Yrd Mat Sub Scr Slots Evolved . | . . . . Power . | . . . . Propulsion . | . . . . Utility . | . . . . Weapon . | . . . . Parts Attached 16 | 6 2 4 4 Power 2 | 1 . . 1 Engine 2 | 1 . . 1 Core . | . . . . Reactor . | . . . . Propulsion 4 | 2 . 1 1 Treads 4 | 2 . 1 1 Leg . | . . . . Wheel . | . . . . Hover . | . . . . Flight . | . . . . Utility 5 | 1 2 1 1 Device 2 | . 2 . . Storage 1 | 1 . . . Processor . | . . . . Hackware . | . . . . Protection 2 | . . 1 1 Artifact . | . . . . Weapon 5 | 2 . 2 1 Energy Gun 2 | 1 . . 1 Energy Cannon . | . . . . Ballistic Gun 2 | 1 . 1 . Ballistic Cannon . | . . . . Launcher . | . . . . Special Weapon 1 | . . 1 . Impact Weapon . | . . . . Slashing Weapon . | . . . . Piercing Weapon . | . . . . Special Melee Weapon . | . . . . Unidentified Prototypes . | . . . . Parts Lost . | . . . . Power . | . . . . Propulsion . | . . . . Utility . | . . . . Weapon . | . . . . Highest Loss Streak . | . . . . To Critical Strikes . | . . . . Average Backups 5 | 2 6 5 4 Power . | . . . . Propulsion 1 | 1 2 1 1 Utility 1 | . . 2 1 Weapon 1 | 1 2 2 1 Tool/Special . | . . . . Unused Backups 13 | . 2 5 6 Power 1 | . . . 1 Propulsion 3 | . . 2 1 Utility 3 | . . 1 2 Weapon 5 | . 2 2 1 Tool/Special 1 | . . . 1 Average Slot Usage (%) 92 | . 92 90 94 Engine 14 | . 14 14 14 Treads 28 | . 28 28 28 Device 7 | . 6 5 8 Storage 5 | . 14 5 . Protection 8 | . . 8 14 Energy Gun 14 | . 14 14 14 Ballistic Gun 13 | . 14 12 14 Peak Build Rating 18 | 6 7 11 18 Average Rating 9 | 5 6 9 12 On Entrance 5 | . 6 7 10 Avg Prop Armor Cover (%) . | . . . . Naked Turns . | . . . . Heaviest Build 29 | 12 13 27 29 Greatest Support 50 | 40 40 40 50 Greatest Overweight (x) . | . . . . Average Overweight (x) . | . . . . Largest Inventory Capacity 8 | 8 8 8 5 Average Capacity 6 | 7 8 6 5 Most Carried 8 | 4 8 8 5 Average Carried 5 | 2 6 5 4 Final Capacity 8 | 8 8 5 5 Final Carried 8 | 4 8 4 5 Class Distribution -------------------- 100% | Mutant Dominant Class ---------------- Mutant | -10/Materials Mutant | -10/Subcaves Mutant | -8/Scraptown Resources | -11 -10 -10 -8 ----------- Run | Yrd Mat Sub Scr Matter Collected 597 | 287 110 140 60 Remotely . | . . . . Salvage Created 727 | 195 232 300 . Parts 46 | 12 17 17 . Haulers Intercepted 1 | . 1 . . Recyclers Shooed 1 | . 1 . . Parts Field Recycled . | . . . . Retrieved Matter . | . . . . Parts Self-Destructed 11 | . . 11 . Prevented . | . . . . Parts Restored . | . . . . Kills | -11 -10 -10 -8 ------- Run | Yrd Mat Sub Scr Combat Hostiles Destroyed 9 | . 5 4 . Guns 9 | . 5 4 . Classes Destroyed 8 | 2 4 2 . Tunneler 5 | 4 1 . . Hauler 1 | . 1 . . Recycler 1 | 1 . . . Watcher 1 | . 1 . . Swarmer 4 | . 3 1 . Grunt 2 | . 2 . . Sentry 1 | . . 1 . Subdweller 2 | . . 2 . Best Kill Streak 3 | 2 3 2 . Combat Bots Only 3 | . 3 2 . Max Kills in Single Turn 1 | 1 1 1 . Gunslinging . | . . . . Exploded . | . . . . Melee . | . . . . Uniques/NPCs Destroyed . | . . . . Combat | -11 -10 -10 -8 -------- Run | Yrd Mat Sub Scr Hostile Shots Fired 45 | . 22 23 . Missed 13 | . 7 6 . Hits 32 | . 15 17 . Projectile 32 | . 15 17 . Critical Strikes 2 | . . 2 . Damage Taken 465 | . 151 314 . Core 106 | . 47 59 . Absorbed by Shields . | . . . . Core Remaining (%) 100 | 100 . . . Volleys Fired 72 | 9 30 33 . Largest 2 | 2 2 2 . Hottest 100 | 70 70 100 . Shots Fired 129 | 18 60 51 . Gun 121 | 18 60 43 . Cannon . | . . . . Launcher . | . . . . Special 8 | . . 8 . Kinetic 63 | 9 30 24 . Thermal 66 | 9 30 27 . Explosive . | . . . . Electromagnetic . | . . . . Robot Hit Streak 21 | 5 10 21 . Robot Miss Streak 4 | 2 4 2 . Penetration Max . | . . . . Secondary Targets . | . . . . Shots Hit Robots 75 | 11 34 30 . Core Hits 30 | 6 11 13 . Critical Kills . | . . . . Critical Parts Destroyed . | . . . . Critical Strikes 3 | . 1 2 . Burn 3 | . 1 2 . Melee Attacks . | . . . . Impact . | . . . . Slashing . | . . . . Piercing . | . . . . Sneak Attacks . | . . . . Combat Hostiles . | . . . . Follow-up Attacks . | . . . . Damage Inflicted 984 | 134 434 416 . Guns 981 | 134 431 416 . Cannons . | . . . . Explosions . | . . . . Melee . | . . . . Ramming 3 | . 3 . . Kinetic 449 | 35 200 214 . Thermal 532 | 99 231 202 . Explosive . | . . . . Electromagnetic . | . . . . Impact . | . . . . Slashing . | . . . . Piercing . | . . . . Highest Corruption . | . . . . Average Corruption . | . . . . Corruption Purged . | . . . . Corruption Blocked . | . . . . Overload Shots . | . . . . Overflow Damage . | . . . . Projectiles . | . . . . Explosions . | . . . . Melee . | . . . . Knockbacks . | . . . . Impact . | . . . . Kinetic . | . . . . Secondary . | . . . . Self-Inflicted Damage . | . . . . Shots . | . . . . Rammed 1 | . 1 . . Targets Rammed 1 | . 1 . . Kicked . | . . . . Crushed . | . . . . Highest Temperature 132 | 27 132 10 . Average Temperature 30 | 11 37 10 . Received Heat Transfer 168 | . 60 108 . Siege Activations . | . . . . Martial Activations . | . . . . Shielding Activations . | . . . . Robots Disrupted . | . . . . Combat Hostiles . | . . . . Robots Corrupted . | . . . . Combat Hostiles . | . . . . Parts Fried . | . . . . Impact Corruptions . | . . . . Robots Melted . | . . . . Combat Hostiles . | . . . . Parts Melted 5 | 1 2 2 . Heat Transferred 1776 | 296 740 740 . Parts Sabotaged . | . . . . Parts Stolen . | . . . . Parts Stripped . | . . . . Power Chain Reactions . | . . . . Alert | -11 -10 -10 -8 ------- Run | Yrd Mat Sub Scr Maximum Alert Level . | . . . . Low Security (%) 100 | 100 100 . . Level 1 . | . . . . Level 2 . | . . . . Level 3 . | . . . . Level 4 . | . . . . Level 5 . | . . . . High Security . | . . . . Max Security . | . . . . Peak Influence 62 | 5 62 . . Initial . | . . . . Average 7 | 1 8 . . Influence Increases 251 | 25 186 40 . Destroy 0b10 Robot/C 140 | . 100 40 . Destroy 0b10 Robot/NC 40 | 25 15 . . Destroy Leader 24 | . 24 . . Successful Hack 17 | . 17 . . Lose Combat Pursuer 30 | . 30 . . Influence Decreases 251 | 25 186 40 . Time Decay 251 | 25 186 40 . Squads Dispatched 1 | . 1 . . Investigation . | . . . . Extermination . | . . . . Reinforcement 1 | . 1 . . Assault . | . . . . Garrison . | . . . . Intercept . | . . . . Searches Triggered . | . . . . Construction Impeded . | . . . . Haulers Reinforced . | . . . . Active Scanning Responses . | . . . . Cargo Convoy Interrupts . | . . . . Stealth | -11 -10 -10 -8 --------- Run | Yrd Mat Sub Scr Distress Signals . | . . . . Communications Jammed . | . . . . Distress Signals . | . . . . Times Spotted 14 | . 10 4 . Peak Tracking Total 3 | . 3 2 . Tactical Retreats 2 | . 2 . . Traps | -11 -10 -10 -8 ------- Run | Yrd Mat Sub Scr Traps Triggered . | . . . . Indirectly . | . . . . Trap Hack Attempts . | . . . . Triggered . | . . . . Disarmed . | . . . . Reprogrammed . | . . . . Reused . | . . . . Traps Extracted . | . . . . Installed . | . . . . Triggered . | . . . . Machines | -11 -10 -10 -8 ---------- Run | Yrd Mat Sub Scr Machines Disabled . | . . . . Max in Single Turn . | . . . . Machines Repaired . | . . . . Machines Dismantled . | . . . . Machines Sabotaged . | . . . . Overloaded Fab Kills . | . . . . Hacking | -11 -10 -10 -8 --------- Run | Yrd Mat Sub Scr Machines Accessed 5 | . 5 . . Terminals 5 | . 5 . . Fabricators . | . . . . Repair Stations . | . . . . Recycling Units . | . . . . Scanalyzers . | . . . . Garrison Access . | . . . . Total Hacks 15 | . 15 . . Successful 9 | . 9 . . Failed 6 | . 6 . . Catastrophic . | . . . . Database Lockouts . | . . . . Manual 15 | . 15 . . Terminals 15 | . 15 . . Fabricators . | . . . . Repair Stations . | . . . . Recycling Units . | . . . . Scanalyzers . | . . . . Garrison Access . | . . . . Terminal Hacks 2 | . 2 . . Robot Analysis 1 | . 1 . . Terminal Index 1 | . 1 . . Fabricator Hacks . | . . . . Repair Station Hacks . | . . . . Recycling Unit Hacks . | . . . . Scanalyzer . | . . . . Garrison Access Hacks . | . . . . Unauthorized Hacks 7 | . 7 . . Terminals 7 | . 7 . . Botnet 2 | . 2 . . Skim 5 | . 5 . . Fabricators . | . . . . Repair Stations . | . . . . Recycling Units . | . . . . Scanalyzers . | . . . . Garrison Access . | . . . . Data Cores Recovered . | . . . . Used . | . . . . Hacking Detections 5 | . 5 . . Full Trace Events . | . . . . Feedback Events . | . . . . Feedback Blocked . | . . . . Robot Schematics Acquired . | . . . . Robots Built . | . . . . Authchips . | . . . . Time . | . . . . Total Robot Build Rating . | . . . . Part Schematics Acquired . | . . . . Parts Built . | . . . . Authchips . | . . . . Time . | . . . . Total Part Build Rating . | . . . . Part Studies Acquired . | . . . . Parts Repaired . | . . . . Time . | . . . . Parts Recycled . | . . . . Recycled Matter . | . . . . Retrieved Matter . | . . . . Retrieved Components . | . . . . Parts Scanalyzed . | . . . . Part Schematics Acquired . | . . . . Parts Damaged . | . . . . Bothacking | -11 -10 -10 -8 ------------ Run | Yrd Mat Sub Scr Used RIF Installer . | . . . . Robots Hacked . | . . . . Non-combat . | . . . . Combat . | . . . . Robot Hacks Applied . | . . . . Relay Couplers Released . | . . . . Fabnet Peak Effective % . | . . . . Robots Rewired . | . . . . Allies Hacked . | . . . . Hacks Repelled . | . . . . Allies | -11 -10 -10 -8 -------- Run | Yrd Mat Sub Scr Total Allies . | . . . . Largest Group . | . . . . Highest-Rated Group . | . . . . Highest-Rated Ally . | . . . . Total Orders . | . . . . Ally Attacks . | . . . . Total Damage . | . . . . Kills . | . . . . Allies Corrupted . | . . . . Allies Melted . | . . . . Intel | -11 -10 -10 -8 ------- Run | Yrd Mat Sub Scr Active Infowar (turns) 1339 | . 306 327 706 Seismic 1339 | . 306 327 706 Robot Analysis Total 1 | . 1 . . Derelict Logs Recovered 1 | . . . 1 Drone Launches . | . . . . Drone Recoveries . | . . . . Exploration | -11 -10 -10 -8 ------------- Run | Yrd Mat Sub Scr Turns Passed 3093 | 162 894 905 1132 Spaces Moved 1519 | 75 340 407 697 Core 1 | 1 . . . Treads 1518 | 74 340 407 697 Legs . | . . . . Wheels . | . . . . Hover . | . . . . Flight . | . . . . Fastest Speed 50 | 50 160 160 160 Average Speed 159 | 158 160 160 160 Slowest Speed 160 | 160 160 160 160 Overloaded Moves . | . . . . Propulsion Burnouts . | . . . . Robots Hopped . | . . . . Potential Cave-ins . | . . . . Cave-ins Triggered . | . . . . Exploration Rate (%) 42 | 6 75 36 53 Regions Visited 3 Branch Regions 2 Pre-discovered Areas . | . . . . Known Exits Taken 1 | . 1 . . Unknown Exits Taken 2 | 1 . 1 . Scrap Searched 4 | . . . 4 Spaces Dug . | . . . . Terrain Destroyed . | . . . . Melee . | . . . . Projectile . | . . . . AOE . | . . . . Terrain Rammed . | . . . . Walls Destroyed . | . . . . Machines Disabled . | . . . . Actions | -11 -10 -10 -8 --------- Run | Yrd Mat Sub Scr Total 2036 | 97 630 594 715 Wait 384 | 4 249 131 . Move 1516 | 74 339 406 697 Hop . | . . . . Pick Up 17 | 4 7 1 5 Fast Attach 9 | 6 . 1 2 Attach 2 | . 1 . 1 Detach 1 | . . 1 . Swap 13 | . 1 9 3 Drop 18 | . 2 9 7 Fire 72 | 9 30 33 . Melee . | . . . . Ram . | . . . . Kick . | . . . . Crush 1 | . 1 . . Escape Stasis . | . . . . Rewire . | . . . . Trap . | . . . . Miscellaneous 3 | . . 3 . Route ------- -11/Scrapyard -10/Materials (discovered 6 exits: *Mat x3 / [*Min x2] / *Sub) -10/Subcaves -8/Scraptown (discovered 1 exit: [*Fac]) History --------- Turn | Location | Event 98 | -11/Scrapyard | Discovered new exit (range 13) 163 | -11/Scrapyard | Entered Materials 300 | -10/Materials | Discovered new exit (range 9) 316 | -10/Materials | Build established: Mutant 474 | -10/Materials | Discovered new exit (range 11) 474 | -10/Materials | Discovered new exit (range 3) 831 | -10/Materials | Learned location of 1 exit from Recycling 887 | -10/Materials | Identified exit to Materials 931 | -10/Materials | Loaded intel: 11 trap records 963 | -10/Materials | Identified exit to Subcaves 983 | -10/Materials | Learned Materials trap positions 1012 | -10/Materials | Learned Materials trap positions 1049 | -10/Materials | Learned Storage non-interactive machine intel 1057 | -10/Materials | Entered Subcaves 1058 | -10/Subcaves | Approached by a straggling Scientist 1382 | -10/Subcaves | Shifting Twisted Machinery released Scrap Shield 1592 | -10/Subcaves | Ambushed by Subdwellers from Twisted Machinery 1962 | -10/Subcaves | Entered Scraptown 2143 | -8/Scraptown | Visited Cyclists 2178 | -8/Scraptown | Visited Supply Room 2225 | -8/Scraptown | Visited The Evicted 2274 | -8/Scraptown | Scanned Subdweller tech in exchange for log data 2279 | -8/Scraptown | Learned Factory trap positions 2476 | -8/Scraptown | Visited Junk Repository 2572 | -8/Scraptown | Discovered new exit (range 11) 3080 | -8/Scraptown | Visited Assassins FH 3094 | -8/Scraptown | Self-destructed Last Messages --------------- 02476_ LOCAL NARROWCAST: Repository. 02572_ EXIT=FOUND 02864_ Searching scrap... 02864_ Found Hpw. Tractor Beam. 02864_ Found Plasma Cutter. 02864_ Found Imp. Signal Interpreter. 02864_ Found Com. Wheel. 02864_ Found 31 Matter. 02865_ Acquired 30 matter. 02867_ Dropped Heat Sink. 02867_ Acquired Imp. Signal Interpreter. 02878_ Dropped Imp. Signal Interpreter. 02883_ Acquired Plasma Cutter. 02931_ Dropped Lgt. Treads. 02942_ Dropped Med. Laser. 02942_ Acquired Field Laser. 03080_ LOCAL NARROWCAST: Assassins FH. No refunds regardless of unexpected side effects. E0-BGD(h): And that's what happens when you're hit by six Bolt Guns at once, heh. Map ----- +----------------------------------------------------+ | " # #???????????????# #???????????? | | # #???????????????# #???????????? | | " #??????????????? #???????????? | | " "# #?????????????? # #???????????? | | """""# #?????????????? # #???????????? | | ####?# #???????????????# "???????????? | | ?????# #???????????????# "???????????? | | ?????# #???????????????# "???????????? | | ###### #???????????????# #???????????? | | #"X" # #???????????????# #####???????? | | # # #???????????????# "???????? | | # # #???????????????# "???????? | | # # #???????????????# "???????? | | # # #???????????????# "???????? | | # ################# "???????? | | # # "???????? | | # "???????? | | # # "???????? | | #""" # "???????? | | ###### "???????? | | #"???????? | | #????????? | | #????????? | | ############!############## ### ####????????? | | #????# "#??# # #???????????? | | #????# " "#??# @h # #???????????? | | #????#" "" #??#" "# #???????????? | | #????#! "" #??#" h"# #???????????? | | #????#!" ""!#??#" "# #???????????? | | #????#!"""////#??##""""""""""## #???????????? | | #????##########???#"l g M"## #???????????? | | #?????????????????## x ### #???????????? | | #??????????????????#H l j #?# #???????????? | | #??????????????????##########?# #???????????? | | #?????????????????????????????# #???????????? | | #??????????????????############ #???????????? | | #??????????????????#""""""""""" #???????????? | | #??????????????????#""""" """"" #???????????? | | ##???????????#######"""" " "" #???????????? | | #???????????# #???????????? | | ##???###????## #####"" "" "" " #???????????? | | # ##???"""""???"" "#??#""""""""""" #???????????? | | ??#????"" ""??""" "#??#""""""""""" #???????????? | | ####???"" "?#""" "#??############ #???????????? | | """#??#" ""##"" "#?############# #???????????? | | "#??#"" ""##"" "#?#"""""""""""# #???????????? | | "#??#"" ""##" "#?#"" * ! [[ "# #???????????? | | """#??#"" ""##"| "#?#"" = !=[! "# #???????????? | | ####??#" ""##"" "#?#"" "# #???????????? | | #######"" ""##"" ""###""" """""""# #???????????? | +----------------------------------------------------+ Best States ------------- Heat Dissipation 35 Energy Generation 12 Energy Capacity 265 Matter Stores 300 Matter Capacity 300 Sight Range 16 Terrain Scan Density 10 Armor Coverage 800 Resistance: TH 10 Evasion (%) 40 Recoil Reduction 2 Item Schematics ----------------- None Robot Schematics ------------------ None Fabricated ------------ Nothing Repaired ---------- Nothing Studied --------- None Alien Tech Used ----------------- None Achievements -------------- Civilization 2243 Challenges ------------ None Game ------ Seed StorageBehemothCharger Manual? 0 Play Time 00:17:33 Cumulative 149.5 hours Start 2025.10.29 @ 23:13:21 End 2025.10.29 @ 23:35:02 Sessions 3 Manual Loads 0 Difficulty Rogue Special Mode None Game No. 109 Rogue 109 Adventurer 0 Explorer 0 Win Type - Total 4 Types 3/0/1/0/0/0/0/0/0/0 Lore% 55 Gallery% 50 Achievement% 31 Wizard Run 0 Options --------- Layout 2 ASCII 0 Keyboard 1 Movement Numpad Keybinds 0 Fullscreen 2 Font 32/SmallcapsGlow Map View 50x44 Zoom Use 0% Tactical HUD 1 Map Filters NONE Filters NONE Steam 1 RUN: 0ac06535-eada-42b0-a07d-f82031d35fa5